fUSD/lending_fUSD_20250606
["ID","MTS","AMOUNT","RATE_DAILY","PERIOD"]
[364786810,1749241865103,-151.0,0.0002789,7]
[364786811,1749241865112,-2618.96,0.0002789,5]
[364786812,1749241865122,-7319.26,0.0002789,5]
[364786813,1749241865131,-15228.1,0.0002789,5]
[364786814,1749241865141,-480.0,0.0002789,5]
[364786815,1749241865150,-3041.7,0.0002789,5]
[364786816,1749241865160,-649.3,0.0002789,5]
[364786817,1749241865170,-585.28,0.0002789,5]
[364786818,1749241865180,-480.0,0.0002789,5]
[364786819,1749241865190,-11478.06,0.0002789,5]
[364786820,1749241865199,-1727.03,0.0002789,5]
[364786821,1749241865208,-1130.77,0.0002789,5]
[364786822,1749241865218,-7297.24,0.0002789,5]
[364786823,1749241865228,-857.354062,0.0002789,7]
[364786824,1749241865237,-480.0,0.0002789,5]
[364786825,1749241865247,-1673.57,0.0002789,5]
[364786826,1749241865256,-480.0,0.0002789,5]
[364786827,1749241865266,-1724.44,0.0002789,5]
[364786828,1749241865276,-155.22438,0.0002789,5]
[364786829,1749241865286,-480.0,0.0002789,5]
[364786830,1749241865295,-857.354062,0.0002789,7]
[364786831,1749241865308,-605.57,0.0002789,5]
[364786832,1749241865318,-2022.54,0.0002789,5]
[364786833,1749241865328,-1496.76,0.0002789,5]
[364786834,1749241865338,-616.43,0.0002789,5]
[364786835,1749241865348,-480.0,0.0002789,5]
[364786836,1749241865358,-1644.54,0.0002789,5]
[364786837,1749241865368,-4800.822384,0.0002789,7]
[364786838,1749241865377,-3349.68,0.0002789,5]
[364786839,1749241865387,-584.83,0.0002789,5]
[364786840,1749241865397,-624.52,0.0002789,5]
[364786841,1749241865408,-1651.89,0.0002789,5]
[364786842,1749241865417,-480.0,0.0002789,5]
[364786843,1749241865426,-4800.822384,0.0002789,7]
[364786844,1749241865436,-480.0,0.0002789,5]
[364786845,1749241865447,-869.35,0.0002789,5]
[364786846,1749241865458,-360.792683,0.0002789,5]
[364786847,1749241865468,-718.31,0.0002789,5]
[364786848,1749241865478,-567.05,0.0002789,5]
[364786849,1749241865487,-593.22,0.0002789,5]
[364786850,1749241865498,-724.33,0.0002789,5]
[364786851,1749241865508,-1529.35,0.0002789,5]
[364786852,1749241865519,-586.21,0.0002789,5]
[364786853,1749241865529,-151.0,0.0002789,7]
[364786854,1749241865538,-618.5,0.0002789,5]
[364786855,1749241865547,-645.12,0.0002789,5]
[364786856,1749241865559,-1029.88,0.0002789,5]
[364786857,1749241865569,-856.04,0.0002789,5]
[364786858,1749241865578,-151.0,0.0002789,7]
[364786859,1749241865588,-1316.83,0.0002789,5]
[364786860,1749241865597,-1219.25,0.0002789,5]
[364786861,1749241865608,-937.26,0.0002789,5]
[364786862,1749241865617,-480.0,0.0002789,2]
[364786863,1749241865627,-2376.4,0.0002789,5]
[364786864,1749241865636,-481.35,0.0002789,5]
[364786865,1749241865646,-1691.35,0.0002789,5]
[364786866,1749241865656,-721.055128,0.0002789,7]
[364786867,1749241865665,-480.0,0.0002789,5]
[364786868,1749241865675,-480.0,0.0002789,5]
[364786869,1749241865685,-874.97,0.0002789,5]
[364786870,1749241865695,-480.0,0.0002789,5]
[364786871,1749241865705,-721.055128,0.0002789,7]
[364786872,1749241865714,-480.0,0.0002789,5]
[364786873,1749241865723,-900.0,0.000279,10]
[364786874,1749241865733,-1000.0,0.000279,2]
[364786875,1749241865742,-400.0,0.000279,10]
[364786876,1749241865752,-215.0738,0.00027909,2]
[364786877,1749241865761,-787.0,0.00027917,5]
[364786878,1749241865771,-1038.0,0.00027917,5]
[364786879,1749241865784,-500.0,0.00027917,5]
[364786880,1749241865794,-156.587,0.00027935,2]
[364786881,1749241865804,-787.0,0.00027945,5]
[364786882,1749241865813,-1038.0,0.00027945,5]
[364786883,1749241865824,-500.0,0.00027945,5]
[364786884,1749241865834,-650.45577193,0.00027948,2]
[364786885,1749241865843,-933.1520387,0.00027969,18]
[364786886,1749241865853,-787.0,0.00027972,5]
[364786887,1749241865863,-1038.0,0.00027972,5]
[364786888,1749241865872,-500.0,0.00027972,5]
[364786889,1749241865881,-500.0,0.00027972,7]
[364786890,1749241865891,-739.24117,0.00027999,7]
[364786891,1749241865902,-739.24117,0.00027999,7]
[364786892,1749241865912,-151.0,0.00027999,7]
[364786893,1749241865921,-151.0,0.00027999,7]
[364786894,1749241865930,-787.0,0.00027999,5]
[364786895,1749241865939,-1038.0,0.00027999,5]
[364786896,1749241865949,-219.03710801,0.00027999,5]
[364786897,1749241865959,-12124.44,0.00028,2]
[364786898,1749241865968,-278.71,0.00028,2]
[364786899,1749241865977,-262.91662911,0.00028,2]
[364786900,1749241865986,-151.0,0.00028,7]
[364786901,1749241865995,-151.0,0.00028,7]
[364786902,1749241866005,-184.953576,0.00028,7]
[364786903,1749241866014,-184.953576,0.00028,7]
[364786904,1749241866023,-151.0,0.00028,7]
[364786905,1749241866033,-1188.95986765,0.00028,5]
[364786906,1749241866044,-376.0,0.00028,2]
[364786907,1749241866053,-768.0,0.00028,2]
[364786908,1749241866063,-713.0,0.00028,2]
[364786909,1749241866072,-136262.88092377,0.00028,2]
[364786910,1749241866082,-1000.0,0.00028,2]
[364786911,1749241866091,-151.0,0.00028,7]
[364786912,1749241866101,-151.0,0.00028,7]
[364786913,1749241866111,-27195.48247358,0.00028,2]
[364786914,1749241866120,-48339.49523854,0.0002802,2]
[364786915,1749241866131,-787.0,0.00028027,5]
[364786916,1749241866140,-1038.0,0.00028027,5]
[364786917,1749241866150,-1037.35961266,0.00028027,30]
[364786918,1749241866159,-203.03590547,0.00028032,2]
[364786919,1749241866168,-150.0,0.00028052,2]
[364786920,1749241866178,-151.0,0.00028054,7]
[364786921,1749241866188,-170.730005,0.00028054,7]
[364786922,1749241866197,-151.0,0.00028054,7]
[364786923,1749241866207,-269.849036,0.00028054,7]
[364786924,1749241866216,-151.0,0.00028054,7]
[364786925,1749241866226,-151.0,0.00028054,7]
[364786926,1749241866235,-151.0,0.00028054,7]
[364786927,1749241866245,-226.158156,0.00028054,7]
[364786928,1749241866254,-151.0,0.00028054,7]
[364786929,1749241866263,-151.0,0.00028054,7]
[364786930,1749241866272,-292.729403,0.00028054,7]
[364786931,1749241866282,-151.0,0.00028054,7]
[364786932,1749241866292,-229.355824,0.00028054,7]
[364786933,1749241866302,-151.0,0.00028054,7]
[364786934,1749241866312,-151.0,0.00028054,7]
[364786935,1749241866322,-152.257674,0.00028054,7]
[364786936,1749241866332,-151.0,0.00028054,7]
[364786937,1749241866341,-151.0,0.00028054,7]
[364786938,1749241866351,-151.0,0.00028054,7]
[364786939,1749241866360,-151.0,0.00028054,7]
[364786940,1749241866370,-159.142375,0.00028054,7]
[364786941,1749241866380,-151.0,0.00028054,7]
[364786942,1749241866390,-151.0,0.00028054,7]
[364786943,1749241866400,-151.0,0.00028054,7]
[364786944,1749241866409,-151.0,0.00028054,7]
[364786945,1749241866419,-151.0,0.00028054,7]
[364786946,1749241866428,-151.0,0.00028054,7]
[364786947,1749241866438,-151.0,0.00028054,7]
[364786948,1749241866448,-151.0,0.00028054,7]
[364786949,1749241866458,-151.0,0.00028054,7]
[364786950,1749241866468,-151.0,0.00028054,7]
[364786951,1749241866477,-197.095984,0.00028054,7]
[364786952,1749241866487,-403.034295,0.00028054,7]
[364786953,1749241866497,-1263.192168,0.00028054,7]
[364786954,1749241866507,-1263.192168,0.00028054,7]
[364786955,1749241866516,-403.034295,0.00028054,7]
[364786956,1749241866526,-1263.192168,0.00028054,7]
[364786957,1749241866535,-1263.192168,0.00028054,7]
[364786958,1749241866545,-151.0,0.00028054,7]
[364786959,1749241866555,-153.712885,0.00028054,7]
[364786960,1749241866565,-293.796403,0.00028054,7]
[364786961,1749241866575,-151.0,0.00028054,7]
[364786962,1749241866585,-151.0,0.00028054,7]
[364786963,1749241866595,-151.0,0.00028054,7]
[364786964,1749241866606,-151.0,0.00028054,7]
[364786965,1749241866616,-261.471555,0.00028054,7]
[364786966,1749241866625,-151.0,0.00028054,7]
[364786967,1749241866635,-186.894339,0.00028054,7]
[364786968,1749241866645,-151.0,0.00028054,7]
[364786969,1749241866655,-151.0,0.00028054,7]
[364786970,1749241866665,-151.0,0.00028054,7]
[364786971,1749241866675,-151.0,0.00028054,7]
[364786972,1749241866685,-151.0,0.00028054,7]
[364786973,1749241866695,-151.0,0.00028054,7]
[364786974,1749241866705,-288.876536,0.00028054,7]
[364786975,1749241866714,-151.0,0.00028054,7]
[364786976,1749241866723,-183.681797,0.00028054,7]
[364786977,1749241866734,-183.681797,0.00028054,7]
[364786978,1749241866743,-183.681797,0.00028054,7]
[364786979,1749241866873,-183.681797,0.00028054,7]
[364786980,1749241866883,-151.0,0.00028054,7]
[364786981,1749241866893,-184.953576,0.00028054,7]
[364786982,1749241866903,-184.953576,0.00028054,7]
[364786983,1749241866913,-1037.945732,0.00028054,7]
[364786984,1749241866923,-1037.945732,0.00028054,7]
[364786985,1749241866933,-1037.945732,0.00028054,7]
[364786986,1749241866943,-151.0,0.00028054,7]
[364786987,1749241866953,-1037.945732,0.00028054,7]
[364786988,1749241866963,-151.0,0.00028054,7]
[364786989,1749241866972,-151.0,0.00028054,7]
[364786990,1749241866982,-1463.594543,0.00028054,5]
[364786991,1749241866992,-1652.978713,0.00028054,5]
[364786992,1749241867002,-151.0,0.00028054,7]
[364786993,1749241867015,-156.813701,0.00028054,5]
[364786994,1749241867024,-151.0,0.00028054,7]
[364786995,1749241867034,-152.576364,0.00028054,7]
[364786996,1749241867044,-170.306146,0.00028054,7]
[364786997,1749241867053,-151.0,0.00028054,7]
[364786998,1749241867063,-170.306146,0.00028054,7]
[364786999,1749241867073,-151.210757,0.00028054,7]
[364787000,1749241867082,-480.0,0.00028054,5]
[364787001,1749241867092,-480.0,0.00028054,5]
[364787002,1749241867101,-330.932588,0.00028054,7]
[364787003,1749241867111,-480.0,0.00028054,5]
[364787004,1749241867120,-157.963801,0.00028054,7]
[364787005,1749241867129,-157.963801,0.00028054,7]
[364787006,1749241867139,-151.0,0.00028054,7]
[364787007,1749241867148,-739.24117,0.00028054,7]
[364787008,1749241867157,-151.0,0.00028054,7]
[364787009,1749241867167,-739.24117,0.00028054,7]
[364787010,1749241867177,-151.0,0.00028054,7]
[364787011,1749241867187,-151.0,0.00028054,7]
[364787012,1749241867197,-151.0,0.00028054,7]
[364787013,1749241867206,-480.0,0.00028054,5]
[364787014,1749241867216,-280.793429,0.00028054,7]
[364787015,1749241867226,-280.793429,0.00028054,7]
[364787016,1749241867235,-151.0,0.00028054,7]
[364787017,1749241867245,-151.0,0.00028054,7]
[364787018,1749241867254,-464.089284,0.00028054,7]
[364787019,1749241867264,-151.0,0.00028054,7]
[364787020,1749241867273,-464.089284,0.00028054,7]
[364787021,1749241867283,-480.0,0.00028054,5]
[364787022,1749241867292,-480.0,0.00028054,5]
[364787023,1749241867302,-480.0,0.00028054,5]
[364787024,1749241867312,-305.730752,0.00028054,7]
[364787025,1749241867321,-305.730752,0.00028054,7]
[364787026,1749241867331,-151.0,0.00028054,7]
[364787027,1749241867340,-480.0,0.00028054,5]
[364787028,1749241867349,-480.0,0.00028054,5]
[364787029,1749241867359,-151.0,0.00028054,7]
[364787030,1749241867368,-480.0,0.00028054,5]
[364787031,1749241867378,-151.0,0.00028054,7]
[364787032,1749241867388,-151.0,0.00028054,7]
[364787033,1749241867397,-186.900191,0.00028054,7]
[364787034,1749241867407,-480.0,0.00028054,5]
[364787035,1749241867417,-186.900191,0.00028054,7]
[364787036,1749241867428,-650.7,0.00028054,2]
[364787037,1749241867439,-480.0,0.00028054,5]
[364787038,1749241867450,-151.0,0.00028054,7]
[364787039,1749241867459,-480.0,0.00028054,5]
[364787040,1749241867469,-480.0,0.00028054,5]
[364787041,1749241867478,-480.0,0.00028054,5]
[364787042,1749241867488,-151.0,0.00028054,7]
[364787043,1749241867497,-1150.67,0.00028054,5]
[364787044,1749241867507,-849.58,0.00028054,5]
[364787045,1749241867516,-151.0,0.00028054,7]
[364787046,1749241867526,-151.0,0.00028054,7]
[364787047,1749241867535,-600.0,0.00028054,30]
[364787048,1749241867544,-1762.69,0.00028054,5]
[364787049,1749241867553,-480.0,0.00028054,5]
[364787050,1749241867563,-521.79,0.00028054,5]
[364787051,1749241867572,-151.0,0.00028054,7]
[364787052,1749241867582,-480.0,0.00028054,5]
[364787053,1749241867593,-167.787558,0.00028054,7]
[364787054,1749241867602,-480.0,0.00028054,5]
[364787055,1749241867612,-480.0,0.00028054,5]
[364787056,1749241867623,-167.787558,0.00028054,7]
[364787057,1749241867634,-1155.6,0.00028054,5]
[364787058,1749241867644,-154.602926,0.00028054,7]
[364787059,1749241867653,-1160.86,0.00028054,5]
[364787060,1749241867663,-519.58,0.00028054,5]
[364787061,1749241867673,-552.94,0.00028054,5]
[364787062,1749241867683,-950.71,0.00028054,5]
[364787063,1749241867692,-480.0,0.00028054,5]
[364787064,1749241867701,-675.25,0.00028054,5]
[364787065,1749241867712,-480.0,0.00028054,5]
[364787066,1749241867721,-885.57,0.00028054,5]
[364787067,1749241867731,-480.0,0.00028054,5]
[364787068,1749241867740,-480.0,0.00028054,5]
[364787069,1749241867749,-666.72,0.00028054,5]
[364787070,1749241867759,-480.0,0.00028054,5]
[364787071,1749241867769,-1073.7,0.00028054,5]
[364787072,1749241867785,-151.0,0.00028054,7]
[364787073,1749241867795,-519.6,0.00028054,5]
[364787074,1749241867804,-511.45,0.00028054,5]
[364787075,1749241867814,-499.44,0.00028054,5]
[364787076,1749241867823,-803.55,0.00028054,5]
[364787077,1749241867833,-365.80959777,0.00028054,5]
[364787078,1749241867843,-579.61,0.00028054,5]
[364787080,1749241867854,-480.0,0.00028054,5]
[364787081,1749241867864,-607.44,0.00028054,5]
[364787082,1749241867873,-883.54,0.00028054,5]
[364787083,1749241867883,-838.95,0.00028054,5]
[364787084,1749241867892,-251.29728511,0.00028054,5]
[364787085,1749241867902,-480.0,0.00028054,5]
[364787086,1749241867912,-480.0,0.00028054,5]
[364787087,1749241867922,-732.08,0.00028054,5]
[364787088,1749241867931,-646.34,0.00028054,5]
[364787089,1749241867941,-480.0,0.00028054,5]
[364787090,1749241867951,-574.86,0.00028054,5]
[364787091,1749241867960,-480.0,0.00028054,5]
[364787092,1749241867969,-151.0,0.00028054,7]
[364787093,1749241867978,-480.0,0.00028054,5]
[364787094,1749241867987,-480.0,0.00028054,5]
[364787095,1749241867996,-151.0,0.00028054,7]
[364787096,1749241868006,-518.75,0.00028054,5]
[364787097,1749241868015,-951.19,0.00028054,5]
[364787098,1749241868024,-779.94,0.00028054,5]
[364787099,1749241868034,-480.0,0.00028054,5]
[364787100,1749241868043,-689.83,0.00028054,5]
[364787101,1749241868052,-151.0,0.00028054,7]
[364787102,1749241868063,-1012.85,0.00028054,5]
[364787103,1749241868072,-482.38,0.00028054,5]
[364787104,1749241868081,-480.0,0.00028054,5]
[364787105,1749241868091,-151.0,0.00028054,7]
[364787106,1749241868100,-713.99,0.00028054,5]
[364787107,1749241868110,-480.0,0.00028054,5]
[364787108,1749241868120,-549.54,0.00028054,5]
[364787109,1749241868131,-480.0,0.00028054,5]
[364787110,1749241868142,-480.0,0.00028054,5]
[364787111,1749241868151,-480.0,0.00028054,5]
[364787112,1749241868161,-891.22,0.00028054,5]
[364787113,1749241868170,-1010.55,0.00028054,5]
[364787114,1749241868179,-480.0,0.00028054,5]
[364787115,1749241868189,-580.5,0.00028054,5]
[364787116,1749241868198,-480.0,0.00028054,5]
[364787117,1749241868207,-160.022321,0.00028054,7]
[364787118,1749241868217,-151.0,0.00028054,7]
[364787119,1749241868226,-160.022321,0.00028054,7]
[364787120,1749241868235,-480.0,0.00028054,5]
[364787121,1749241868244,-480.0,0.00028054,5]
[364787122,1749241868254,-480.0,0.00028054,5]
[364787123,1749241868263,-701.32114,0.00028054,7]
[364787124,1749241868273,-240.64507,0.00028054,7]
[364787125,1749241868282,-787.11,0.00028054,5]
[364787126,1749241868291,-151.0,0.00028054,7]
[364787127,1749241868302,-240.64507,0.00028054,7]
[364787128,1749241868312,-480.0,0.00028054,5]
[364787129,1749241868322,-701.32114,0.00028054,7]
[364787130,1749241868331,-247.548234,0.00028054,7]
[364787131,1749241868340,-480.0,0.00028054,5]
[364787132,1749241868350,-801.53,0.00028054,5]
[364787133,1749241868360,-247.548234,0.00028054,7]
[364787134,1749241868369,-547.92,0.00028054,5]
[364787135,1749241868379,-480.0,0.00028054,5]
[364787136,1749241868388,-788.62,0.00028054,5]
[364787137,1749241868398,-823.95,0.00028054,5]
[364787138,1749241868407,-155.344461,0.00028054,7]
[364787139,1749241868417,-540.55,0.00028054,5]
[364787140,1749241868426,-155.344461,0.00028054,7]
[364787141,1749241868435,-480.0,0.00028054,5]
[364787142,1749241868447,-1667.28,0.00028054,5]
[364787143,1749241868456,-480.0,0.00028054,5]
[364787144,1749241868465,-151.0,0.00028054,7]
[364787145,1749241868475,-708.27,0.00028054,5]
[364787146,1749241868484,-151.0,0.00028054,7]
[364787147,1749241868493,-815.35,0.00028054,5]
[364787148,1749241868502,-1322.04,0.00028054,5]
[364787149,1749241868512,-788.51,0.00028054,5]
[364787150,1749241868521,-480.0,0.00028054,5]
[364787151,1749241868530,-1588.19,0.00028054,5]
[364787152,1749241868540,-894.23,0.00028054,5]
[364787153,1749241868549,-151.0,0.00028054,7]
[364787154,1749241868559,-493.66,0.00028054,5]
[364787155,1749241868569,-627.73,0.00028054,5]
[364787156,1749241868578,-907.31,0.00028054,5]
[364787157,1749241868587,-1000.0,0.00028054,5]
[364787158,1749241868596,-543.94,0.00028054,5]
[364787159,1749241868605,-151.0,0.00028054,7]
[364787160,1749241868614,-907.9,0.00028054,5]
[364787161,1749241868624,-151.0,0.00028054,7]
[364787162,1749241868632,-612.39,0.00028054,5]
[364787163,1749241868642,-908.3,0.00028054,5]
[364787164,1749241868650,-156.813701,0.00028054,5]
[364787165,1749241868659,-480.0,0.00028054,5]
[364787166,1749241868668,-480.0,0.00028054,5]
[364787167,1749241868678,-3267.11,0.00028054,5]
[364787168,1749241868687,-778.17,0.00028054,5]
[364787169,1749241868696,-948.36,0.00028054,5]
[364787170,1749241868704,-1438.85,0.00028054,5]
[364787171,1749241868713,-150.270793,0.00028054,5]
[364787172,1749241868722,-542.99,0.00028054,5]
[364787173,1749241868731,-555.32,0.00028054,5]
[364787174,1749241868740,-480.0,0.00028054,5]
[364787175,1749241868749,-1535.87,0.00028054,5]
[364787176,1749241868758,-480.0,0.00028054,5]
[364787177,1749241868768,-1296.25,0.00028054,5]
[364787178,1749241868778,-516.58,0.00028054,5]
[364787179,1749241868787,-480.0,0.00028054,5]
[364787180,1749241868797,-538.08,0.00028054,5]
[364787181,1749241868806,-1575.78,0.00028054,5]
[364787182,1749241868814,-821.990228,0.00028054,7]
[364787183,1749241868824,-805.066752,0.00028054,7]
[364787184,1749241868833,-158.659202,0.00028054,7]
[364787185,1749241868842,-821.990228,0.00028054,7]
[364787186,1749241868852,-970.72,0.00028054,5]
[364787187,1749241868862,-983.05591,0.00028054,7]
[364787188,1749241868871,-805.066752,0.00028054,7]
[364787189,1749241868880,-2734.62,0.00028054,5]
[364787190,1749241868889,-158.659202,0.00028054,7]
[364787191,1749241868898,-1837.71,0.00028054,5]
[364787192,1749241868907,-480.0,0.00028054,5]
[364787193,1749241868917,-983.05591,0.00028054,7]
[364787194,1749241868926,-2758.24,0.00028054,5]
[364787195,1749241868935,-4609.26,0.00028054,5]
[364787196,1749241868944,-480.0,0.00028054,5]
[364787197,1749241868953,-819.99,0.00028054,5]
[364787198,1749241868962,-1046.07,0.00028054,5]
[364787199,1749241868971,-480.0,0.00028054,5]
[364787200,1749241868980,-3979.76,0.00028054,5]
[364787201,1749241868989,-902.21,0.00028054,5]
[364787202,1749241869284,-480.0,0.00028054,5]
[364787203,1749241869296,-599.88,0.00028054,5]
[364787204,1749241869306,-480.0,0.00028054,5]
[364787205,1749241869319,-7399.63,0.00028054,5]
[364787206,1749241869329,-765.24,0.00028054,5]
[364787207,1749241869339,-57460.09,0.00028054,5]
[364787208,1749241869349,-480.0,0.00028054,5]
[364787209,1749241869360,-703.27,0.00028054,5]
[364787210,1749241869370,-480.0,0.00028054,5]
[364787211,1749241869379,-4676.37,0.00028054,5]
[364787212,1749241869389,-621.63060408,0.00028054,5]
[364787213,1749241869399,-2938.32,0.00028054,5]
[364787214,1749241869408,-1379.45,0.00028054,5]
[364787215,1749241869418,-7478.95,0.00028054,5]
[364787216,1749241869428,-755.4,0.00028054,5]
[364787217,1749241869438,-607.62,0.00028054,5]
[364787218,1749241869448,-151.0,0.00028054,7]
[364787219,1749241869457,-3373.75,0.00028054,5]
[364787220,1749241869466,-1091.95,0.00028054,5]
[364787221,1749241869475,-1260.18,0.00028054,5]
[364787222,1749241869485,-949.92,0.00028054,5]
[364787223,1749241869495,-9118.0,0.00028054,5]
[364787224,1749241869505,-480.0,0.00028054,5]
[364787225,1749241869514,-520.51,0.00028054,5]
[364787226,1749241869524,-480.0,0.00028054,5]
[364787227,1749241869533,-597.4,0.00028054,5]
[364787228,1749241869543,-1500.48,0.00028054,5]
[364787229,1749241869552,-1073.19,0.00028054,5]
[364787230,1749241869562,-2617.35,0.00028054,5]
[364787231,1749241869572,-1091.83,0.00028054,5]
[364787232,1749241869581,-1000.0,0.00028054,5]
[364787233,1749241869591,-1000.0,0.00028054,2]
[364787234,1749241869600,-480.0,0.00028054,5]
[364787235,1749241869609,-480.0,0.00028054,5]
[364787236,1749241869619,-2954.48,0.00028054,5]
[364787237,1749241869629,-480.0,0.00028054,5]
[364787238,1749241869640,-676.46,0.00028054,5]
[364787239,1749241869649,-480.0,0.00028054,5]
[364787240,1749241869660,-1100.1,0.00028054,5]
[364787241,1749241869672,-774.3,0.00028054,5]
[364787242,1749241869682,-909.08,0.00028054,5]
[364787243,1749241869691,-771.25,0.00028054,5]
[364787244,1749241869701,-1341.13,0.00028054,5]
[364787245,1749241869711,-1674.49,0.00028054,5]
[364787246,1749241869721,-480.0,0.00028054,5]
[364787247,1749241869731,-2363.43,0.00028054,5]
[364787248,1749241869741,-1778.5,0.00028054,5]
[364787249,1749241869751,-2094.52,0.00028054,5]
[364787250,1749241869762,-480.0,0.00028054,5]
[364787251,1749241869771,-2998.55,0.00028054,5]
[364787252,1749241869784,-837.35,0.00028054,5]
[364787253,1749241869794,-1324.98,0.00028054,5]
[364787254,1749241869803,-822.69,0.00028054,5]
[364787255,1749241869813,-4354.28,0.00028054,5]
[364787256,1749241869823,-1172.56,0.00028054,5]
[364787257,1749241869832,-10833.54,0.00028054,5]
[364787258,1749241869841,-480.0,0.00028054,5]
[364787259,1749241869852,-2910.79,0.00028054,5]
[364787260,1749241869861,-151.0,0.00028054,7]
[364787261,1749241869872,-188.981441,0.00028054,7]
[364787262,1749241869881,-1425.98,0.00028054,5]
[364787263,1749241869892,-1161.29,0.00028054,5]
[364787264,1749241869905,-701.08,0.00028054,5]
[364787265,1749241869915,-480.0,0.00028054,5]
[364787266,1749241869925,-725.11,0.00028054,5]
[364787267,1749241869935,-188.981441,0.00028054,7]
[364787268,1749241869944,-891.78,0.00028054,5]
[364787269,1749241869953,-622.3,0.00028054,5]
[364787270,1749241869962,-480.0,0.00028054,5]
[364787271,1749241869971,-2822.75,0.00028054,5]
[364787272,1749241869981,-1363.03,0.00028054,5]
[364787273,1749241869992,-480.0,0.00028054,5]
[364787274,1749241870001,-3135.14,0.00028054,5]
[364787275,1749241870010,-1180.93,0.00028054,5]
[364787276,1749241870020,-931.09,0.00028054,5]
[364787277,1749241870030,-480.0,0.00028054,5]
[364787278,1749241870039,-1414.51,0.00028054,5]
[364787279,1749241870048,-1155.88,0.00028054,5]
[364787280,1749241870058,-4001.96,0.00028054,5]
[364787281,1749241870067,-552.73,0.00028054,5]
[364787282,1749241870077,-632.88,0.00028054,5]
[364787283,1749241870086,-1526.89,0.00028054,5]
[364787284,1749241870095,-480.0,0.00028054,5]
[364787285,1749241870104,-1010.46,0.00028054,5]
[364787286,1749241870113,-480.0,0.00028054,5]
[364787287,1749241870122,-471.158267,0.00028054,7]
[364787288,1749241870132,-1132.61,0.00028054,5]
[364787289,1749241870142,-593.39,0.00028054,5]
[364787290,1749241870152,-151.0,0.00028054,7]
[364787291,1749241870165,-471.158267,0.00028054,7]
[364787292,1749241870175,-1110.02,0.00028054,5]
[364787293,1749241870185,-533.37,0.00028054,5]
[364787294,1749241870195,-4560.52,0.00028054,5]
[364787295,1749241870204,-480.0,0.00028054,5]
[364787296,1749241870214,-1741.06,0.00028054,5]
[364787297,1749241870223,-480.0,0.00028054,5]
[364787298,1749241870234,-480.0,0.00028054,5]
[364787299,1749241870243,-480.0,0.00028054,5]
[364787300,1749241870252,-1207.6,0.00028054,5]
[364787301,1749241870261,-480.0,0.00028054,5]
[364787302,1749241870271,-579.0,0.00028054,5]
[364787303,1749241870280,-526.84,0.00028054,5]
[364787304,1749241870290,-350.072118,0.00028054,28]
[364787305,1749241870300,-625.4,0.00028054,5]
[364787306,1749241870310,-776.39,0.00028054,5]
[364787307,1749241870319,-1627.41,0.00028054,5]
[364787308,1749241870329,-947.268152,0.00028054,7]
[364787309,1749241870338,-959.5,0.00028054,5]
[364787310,1749241870347,-3166.58,0.00028054,5]